bitfinex-derivatives/quotes_BTCF0:USTF0_20250422
["timestamp","ask_amount","ask_price","bid_price","bid_amount"]
[1745365601280,0.80116,93507.0,93506.0,0.009]
[1745365601481,0.80016,93507.0,93506.0,0.002]
[1745365601682,0.80016,93507.0,93506.0,0.004]
[1745365601978,0.80116,93507.0,93506.0,0.006]
[1745365602376,0.80116,93507.0,93506.0,0.009]
[1745365602777,0.80016,93507.0,93506.0,0.007]
[1745365602976,0.80216,93507.0,93506.0,0.008]
[1745365603584,0.357,93507.0,93506.0,0.008]
[1745365603779,0.1809,93507.0,93506.0,0.8128]
[1745365604178,0.003,93507.0,93506.0,0.8128]
[1745365604373,0.003,93507.0,93506.0,0.9128]
[1745365604781,0.002,93507.0,93506.0,0.9138]
[1745365605378,0.002,93507.0,93506.0,0.9148]
[1745365605973,0.002,93507.0,93506.0,0.8148]
[1745365606183,0.001,93507.0,93506.0,0.8068]
[1745365606382,0.1768,93513.0,93511.0,0.106894]
[1745365606587,0.08428036,93519.0,93508.0,0.0534487]
[1745365606887,0.1718,93518.0,93516.0,0.1068881]
[1745365607084,0.1718,93518.0,93517.0,0.2781875]
[1745365607480,0.1718,93518.0,93517.0,0.1713]
[1745365607684,0.3383,93518.0,93515.0,0.1653]
[1745365608282,0.3383,93518.0,93515.0,0.1643]
[1745365608687,0.3383,93518.0,93506.0,0.001]
[1745365608987,0.1624,93517.0,93496.0,0.3404]
[1745365609190,0.1624,93517.0,93515.0,0.003]
[1745365609491,0.42012,93516.0,93515.0,0.003]
[1745365609785,0.42012,93516.0,93515.0,0.1098898]
[1745365609990,0.1695,93516.0,93515.0,0.1068898]
[1745365611487,0.1705,93516.0,93515.0,0.2888898]
[1745365612186,0.1695,93516.0,93515.0,0.2848898]
[1745365612386,0.1705,93516.0,93515.0,0.2878898]
[1745365613080,0.1695,93516.0,93515.0,0.2848898]
[1745365613285,0.1705,93516.0,93515.0,0.183]
[1745365613485,0.1705,93516.0,93515.0,0.2898898]
[1745365614494,0.001,93516.0,93515.0,0.2898898]
[1745365615789,0.00016036,93519.0,93518.0,0.1058863]
[1745365616298,0.00016036,93519.0,93515.0,0.003]
[1745365616594,0.44492,93518.0,93499.0,0.3421]
[1745365616790,0.1666,93517.0,93516.0,0.1068886]
[1745365618389,0.1676,93517.0,93516.0,0.1068886]
[1745365618580,0.1676,93517.0,93516.0,0.1108886]
[1745365618785,0.1666,93517.0,93516.0,0.1108886]
[1745365619390,0.1666,93517.0,93516.0,0.1098886]
[1745365619582,0.1666,93517.0,93516.0,0.2785886]
[1745365620192,0.1666,93517.0,93516.0,0.17964745]
[1745365620392,0.1666,93517.0,93516.0,0.28653605]
[1745365620592,0.1676,93517.0,93516.0,0.28753605]
[1745365620992,0.1666,93517.0,93516.0,0.28653605]
[1745365621191,0.1676,93517.0,93516.0,0.46443605]
[1745365621390,0.1676,93517.0,93516.0,0.35554745]
[1745365621592,0.1676,93517.0,93516.0,0.46243605]
[1745365623896,0.1676,93517.0,93516.0,0.35554745]
[1745365624097,0.1676,93517.0,93516.0,0.46243605]
[1745365624397,0.1676,93517.0,93516.0,0.35554745]
[1745365624599,0.1676,93517.0,93516.0,0.46243605]
[1745365625297,0.1676,93517.0,93516.0,0.18584745]
[1745365626194,0.1676,93517.0,93516.0,0.29273605]
[1745365626901,0.1676,93517.0,93516.0,0.18584745]
[1745365627305,0.1676,93517.0,93516.0,0.29273605]
[1745365628200,0.1676,93517.0,93516.0,0.63363605]
[1745365628502,0.1676,93517.0,93516.0,0.63463605]
[1745365629303,0.1176,93517.0,93516.0,0.63463605]
[1745365630097,0.1176,93517.0,93516.0,0.63363605]
[1745365630303,0.08412,93540.0,93529.0,0.1068733]
[1745365630598,0.1757,93531.0,93530.0,0.3455]
[1745365631295,0.1757,93531.0,93530.0,0.1734]
[1745365631601,0.1757,93531.0,93528.0,0.3608]
[1745365631797,0.1797,93531.0,93530.0,0.001]
[1745365633603,0.1797,93531.0,93530.0,0.1078726]
[1745365634198,0.1797,93531.0,93530.0,0.1008726]
[1745365634501,0.1797,93531.0,93530.0,0.4449726]
[1745365634697,0.08392,93561.0,93531.0,0.0534355]
[1745365634898,0.3608,93572.0,93543.0,0.3608]
[1745365635200,0.1776,93568.0,93567.0,0.1068303]
[1745365635803,0.1776,93568.0,93567.0,0.1654]
[1745365636102,0.21188335,93568.0,93558.0,0.10016036]
[1745365636304,0.1774,93567.0,93559.0,0.1654]
[1745365636698,0.1776,93566.0,93563.0,0.1068348]
[1745365636901,0.1776,93566.0,93558.0,0.00016036]
[1745365637102,0.3608,93563.0,93558.0,0.00016036]
[1745365637303,0.1776,93562.0,93558.0,0.00016036]
[1745365638104,0.1752,93561.0,93558.0,0.00016036]
[1745365638300,0.536,93561.0,93558.0,0.00798622]
[1745365638506,0.536,93561.0,93558.0,0.00016036]
[1745365638507,0.1717,93560.0,93558.0,0.00016036]
[1745365638702,0.1717,93560.0,93558.0,0.00316036]
[1745365638902,0.1755,93559.0,93558.0,0.00316036]
[1745365640613,0.1755,93559.0,93558.0,0.00016036]
[1745365640813,0.1755,93559.0,93558.0,0.00516036]
[1745365641303,0.1755,93559.0,93558.0,0.00416036]
[1745365641499,0.03428335,93568.0,93558.0,0.00116036]
[1745365641710,0.341,93566.0,93565.0,0.1068326]
[1745365642707,0.341,93566.0,93565.0,0.6282326]
[1745365642913,0.1719,93566.0,93565.0,0.6282326]
[1745365643803,0.1719,93566.0,93565.0,0.6292326]
[1745365644008,0.0719,93566.0,93565.0,0.6292326]
[1745365644607,0.1768,93567.0,93566.0,0.1068315]
[1745365644802,0.03377003,93568.0,93567.0,0.1068303]
[1745365645004,0.1768,93576.0,93571.0,0.106825]
[1745365645307,0.1768,93576.0,93572.0,0.1635]
[1745365645808,0.1768,93576.0,93572.0,0.2703239]
[1745365646001,0.1768,93576.0,93573.0,0.1068228]
[1745365646213,0.21036642,93576.0,93572.0,0.1635]
[1745365647012,0.21036642,93576.0,93572.0,0.1555]
[1745365647201,0.1751,93575.0,93572.0,0.1555]
[1745365647405,0.1751,93575.0,93565.0,0.3608]
[1745365647605,0.164,93574.0,93565.0,0.3608]
[1745365647812,0.164,93574.0,93566.0,0.0534157]
[1745365648014,0.1735,93573.0,93566.0,0.0534157]
[1745365648309,0.1735,93573.0,93572.0,0.1068246]
[1745365650510,0.1745,93573.0,93572.0,0.1088246]
[1745365650708,0.08388,93589.0,93573.0,0.0534117]
[1745365650905,0.08388,93589.0,93583.0,0.3608]
[1745365651112,0.1655,93588.0,93587.0,0.1058075]
[1745365651908,0.19959086,93588.0,93587.0,0.1058075]
[1745365652112,0.19959086,93588.0,93586.0,0.1627]
[1745365652518,0.19959086,93588.0,93583.0,0.3608]
[1745365652816,0.19959086,93588.0,93583.0,0.4676112]
[1745365653318,0.19959086,93588.0,93584.0,0.1068107]
[1745365653513,0.19959086,93588.0,93586.0,0.001]
[1745365653716,0.03409086,93588.0,93587.0,0.1068075]
[1745365653909,0.1761,93594.0,93588.0,0.0534031]
[1745365654105,0.1761,93594.0,93591.0,0.106803]
[1745365655411,0.1761,93594.0,93591.0,0.107803]
[1745365656612,0.03933165,93592.0,93591.0,0.109803]
[1745365657913,0.0052,93592.0,93591.0,0.470603]
[1745365658311,0.0052,93592.0,93591.0,0.570603]
[1745365658511,0.00016036,93597.0,93596.0,0.1067972]
[1745365658718,0.03480794,93597.0,93596.0,0.1067972]
[1745365659107,0.01604001,93632.0,93596.0,0.10684]
[1745365659306,0.01604001,93627.0,93608.0,0.0533916]
[1745365659508,0.1618,93629.0,93616.0,0.3608]
[1745365659710,0.1674,93626.0,93618.0,0.047386]
[1745365660017,0.1674,93626.0,93618.0,0.1067714]
[1745365660218,0.1674,93626.0,93620.0,0.1067693]
[1745365660411,0.1755,93625.0,93622.0,0.1067673]
[1745365660814,0.1674,93624.0,93620.0,0.1067699]
[1745365661222,0.1755,93623.0,93620.0,0.1067699]
[1745365661713,0.1674,93622.0,93621.0,0.1067687]
[1745365661915,0.001,93625.0,93624.0,0.1067653]
[1745365662816,0.0342873,93629.0,93628.0,0.1067607]
[1745365663012,0.00016027,93631.0,93630.0,0.1067585]
[1745365663722,0.03470928,93631.0,93630.0,0.1067585]
[1745365663908,0.03470928,93631.0,93630.0,0.2762585]
[1745365664310,0.1738,93638.0,93637.0,0.1067505]
[1745365664515,0.20697929,93638.0,93637.0,0.1067505]
[1745365665316,0.20697929,93638.0,93637.0,0.4498505]
[1745365665507,0.0052,93640.0,93637.0,0.4498505]
[1745365665708,0.0052,93640.0,93639.0,0.1057482]
[1745365666115,0.0836,93675.0,93642.0,0.0533719]
[1745365666415,0.3389,93667.0,93660.0,0.1067237]
[1745365666617,0.3389,93667.0,93661.0,0.1724]
[1745365667119,0.3389,93667.0,93661.0,0.1714]
[1745365667310,0.38104227,93667.0,93661.0,0.1714]
[1745365667715,0.38404227,93667.0,93661.0,0.1714]
[1745365667916,0.38404227,93667.0,93666.0,0.1067174]
[1745365668117,0.38104227,93667.0,93662.0,0.1654]
[1745365668315,0.38304227,93667.0,93655.0,0.00016018]
[1745365668509,0.38304227,93667.0,93614.0,0.4444]
[1745365668510,0.3608,93656.0,93614.0,0.4444]
[1745365668716,0.12740676,93640.0,93628.0,0.0533803]
[1745365668911,0.3254,93639.0,93633.0,0.1067547]
[1745365669419,0.3254,93639.0,93627.0,0.0533809]
[1745365669620,0.3254,93639.0,93632.0,0.1067561]
[1745365669926,0.3254,93639.0,93633.0,0.1067547]
[1745365670123,0.3254,93639.0,93632.0,0.1067558]
[1745365670422,0.3254,93639.0,93631.0,0.1635]
[1745365670824,0.3254,93639.0,93632.0,0.1067557]
[1745365671010,0.3254,93639.0,93633.0,0.106755]
[1745365671209,0.3254,93639.0,93627.0,0.00016018]
[1745365671416,0.3608,93634.0,93633.0,0.007]
[1745365672122,0.0836,93638.0,93637.0,0.1067505]
[1745365672316,0.421,93638.0,93635.0,0.1067517]
[1745365672516,0.421,93638.0,93634.0,0.1739]
[1745365673024,0.421,93638.0,93634.0,0.2806529]
[1745365673411,0.421,93638.0,93635.0,0.0166893]
[1745365673623,0.421,93638.0,93636.0,0.0166893]
[1745365673823,0.421,93638.0,93637.0,0.0166893]
[1745365674025,0.421,93638.0,93637.0,0.0166887]
[1745365674220,0.421,93638.0,93637.0,0.1234392]
[1745365675120,0.421,93638.0,93637.0,0.0166887]
[1745365675419,0.421,93638.0,93637.0,0.0176887]
[1745365676118,0.421,93638.0,93637.0,0.0196887]
[1745365676321,0.421,93638.0,93637.0,0.004]
[1745365676523,0.421,93638.0,93637.0,0.02068765]
[1745365677021,0.421,93638.0,93637.0,0.12743815]
[1745365677418,0.3374,93638.0,93637.0,0.12743815]
[1745365677619,0.3374,93638.0,93637.0,0.12443815]
[1745365678019,0.3374,93638.0,93637.0,0.01768765]
[1745365678413,0.3374,93638.0,93637.0,0.01968765]
[1745365679122,0.3374,93638.0,93637.0,0.003]
[1745365679522,0.3374,93638.0,93637.0,0.004]
[1745365679914,0.3374,93638.0,93637.0,0.002]
[1745365680114,0.3374,93638.0,93637.0,0.01868791]
[1745365680517,0.3374,93638.0,93637.0,0.01668791]
[1745365680718,0.3374,93638.0,93602.0,0.3608]
[1745365680924,0.3608,93628.0,93605.0,0.1708]
[1745365681120,0.3359,93627.0,93613.0,0.10837919]
[1745365681423,0.3359,93627.0,93613.0,0.05499109]
[1745365681626,0.3359,93627.0,93618.0,0.1067717]
[1745365682123,0.37899269,93627.0,93619.0,0.1658]
[1745365682321,0.37899269,93627.0,93613.0,0.00964533]
[1745365682522,0.3608,93620.0,93615.0,0.1067751]
[1745365682726,0.3359,93619.0,93615.0,0.1067751]
[1745365682924,0.3359,93619.0,93614.0,0.1658]
[1745365683725,0.4973,93619.0,93614.0,0.1658]
[1745365684125,0.4973,93619.0,93614.0,0.1678]
[1745365684329,0.4973,93619.0,93614.0,0.1698]
[1745365684529,0.1067756,93615.0,93614.0,0.004]
[1745365684827,0.0533907,93610.0,93582.0,0.1068128]
[1745365685021,0.3608,93597.0,93588.0,0.1068057]
[1745365685219,0.1744,93596.0,93589.0,0.1678]
[1745365685428,0.3447,93596.0,93589.0,0.1678]
[1745365685831,0.3447,93596.0,93584.0,0.00016018]
[1745365686430,0.3457,93596.0,93591.0,0.00934237]
[1745365686631,0.3457,93596.0,93591.0,0.01034237]
[1745365687026,0.4524974,93596.0,93591.0,0.01034237]
[1745365687233,0.3457,93596.0,93591.0,0.01034237]
[1745365687428,0.3990987,93596.0,93591.0,0.01434237]
[1745365687928,0.10684401,93595.0,93568.0,0.1]
[1745365688131,0.3608,93577.0,93568.0,0.00789791]
[1745365688332,0.3608,93569.0,93553.0,0.1716]
[1745365688523,0.3268,93568.0,93553.0,0.1716]
[1745365688725,0.3268,93568.0,93560.0,0.1068382]
[1745365689431,0.3268,93568.0,93557.0,0.00160336]
[1745365689735,0.3278,93568.0,93557.0,0.00760336]
[1745365689926,0.36989894,93568.0,93557.0,0.00760336]
[1745365690121,0.36989894,93568.0,93557.0,0.00973047]
[1745365690327,0.37089894,93568.0,93560.0,0.013]
[1745365690532,0.37089894,93568.0,93567.0,0.1068303]
[1745365690837,0.002,93568.0,93567.0,0.1068303]
[1745365691035,0.4444,93589.0,93576.0,0.1068201]
[1745365691530,0.1716,93588.0,93576.0,0.1068201]
[1745365691735,0.3423,93588.0,93576.0,0.1058201]
[1745365691929,0.3423,93588.0,93576.0,0.4468201]
[1745365692132,0.00016027,93586.0,93576.0,0.4468201]
[1745365692330,0.3618,93577.0,93576.0,0.4488201]
[1745365692722,0.3618,93577.0,93576.0,0.4478201]
[1745365693526,0.001,93577.0,93576.0,0.1118201]
[1745365693834,0.001,93577.0,93576.0,0.12851203]
[1745365694137,0.001,93577.0,93576.0,0.2751201]
[1745365695835,0.001,93577.0,93576.0,0.007]
[1745365696036,0.001,93577.0,93576.0,0.1138201]
[1745365696430,0.001,93577.0,93576.0,0.007]
[1745365696627,0.107864,93577.0,93562.0,0.0534175]
[1745365696823,0.3608,93572.0,93565.0,0.1068322]
[1745365697131,0.42858,93571.0,93566.0,0.2732312]
[1745365697336,0.42858,93571.0,93570.0,0.1068269]
[1745365698739,0.42958,93571.0,93570.0,0.1118269]
[1745365699923,0.43058,93571.0,93570.0,0.1168269]
[1745365701526,0.43058,93571.0,93570.0,0.01]
[1745365703423,0.43058,93571.0,93570.0,0.1168269]
[1745365705836,0.43058,93571.0,93570.0,0.01]
[1745365710837,0.43058,93571.0,93567.0,0.1675]
[1745365710838,0.0534152,93567.0,93552.0,0.1068473]
[1745365711039,0.3608,93564.0,93557.0,0.11642762]
[1745365711237,0.3403,93563.0,93558.0,0.1675]
[1745365712131,0.3403,93563.0,93558.0,0.2743406]
[1745365712539,0.3403,93563.0,93558.0,0.2803406]
[1745365712742,0.3423,93563.0,93558.0,0.2883406]
[1745365713139,0.3423,93563.0,93558.0,0.1815]
[1745365714141,0.3413,93563.0,93558.0,0.1735]
[1745365714347,0.3523,93563.0,93558.0,0.1745]
[1745365714641,0.3573,93563.0,93559.0,0.1068393]
[1745365714847,0.01604001,93562.0,93560.0,0.1068382]
[1745365715046,0.01604001,93562.0,93561.0,0.1662]
[1745365717642,0.01604001,93562.0,93559.0,0.001]
[1745365717842,0.02104001,93562.0,93557.0,0.11642782]
[1745365718242,0.02104001,93562.0,93558.0,0.1737]
[1745365718438,0.01804001,93562.0,93558.0,0.1737]
[1745365718643,0.02104001,93562.0,93558.0,0.1737]
[1745365718946,0.02104001,93562.0,93557.0,0.11642782]
[1745365719149,0.0534191,93560.0,93557.0,0.00160336]
[1745365719338,0.1068406,93558.0,93557.0,0.00160336]
[1745365720055,0.1068424,93557.0,93555.0,0.00016027]
[1745365720250,0.522,93556.0,93555.0,0.00016027]
[1745365721660,0.523,93556.0,93555.0,0.00116027]
[1745365721849,0.001,93556.0,93555.0,0.10800427]
[1745365722049,0.08352,93571.0,93555.0,0.35804827]
[1745365722354,0.08352,93571.0,93566.0,0.1068315]
[1745365722559,0.08352,93571.0,93563.0,0.4142173]
[1745365722759,0.08352,93571.0,93566.0,0.1068315]
[1745365723157,0.08352,93571.0,93566.0,0.1058315]
[1745365723657,0.3608,93572.0,93566.0,0.1058315]
[1745365723852,0.00316027,93567.0,93565.0,0.1623]
[1745365724049,0.00716027,93567.0,93566.0,0.2704315]
[1745365724850,0.00516027,93567.0,93566.0,0.2714315]
[1745365726556,0.00116027,93567.0,93566.0,0.2704315]
[1745365726759,0.3608,93582.0,93581.0,0.1068144]
[1745365726958,0.0834,93585.0,93584.0,0.1038109]
[1745365727160,0.0834,93599.0,93583.0,0.1752]
[1745365727364,0.0834,93599.0,93596.0,0.0533986]
[1745365727658,0.0834,93599.0,93597.0,0.5163]
[1745365727863,0.0834,93599.0,93597.0,0.6230959]
[1745365728165,0.00160401,93612.0,93604.0,0.0533936]
[1745365728352,0.00160401,93612.0,93611.0,0.1047801]
[1745365728751,0.0834,93626.0,93625.0,0.1067642]
[1745365728956,0.09944001,93626.0,93625.0,0.1037642]
[1745365729265,0.49668873,93626.0,93622.0,0.1675]
[1745365729558,0.49668873,93626.0,93622.0,0.1655]
[1745365730653,0.1772,93625.0,93622.0,0.1655]
[1745365731763,0.1772,93625.0,93622.0,0.1665]
[1745365731953,0.1772,93625.0,93605.0,0.106786]
[1745365731954,0.0533849,93621.0,93605.0,0.106786]
[1745365732152,0.3608,93613.0,93602.0,0.2264947]
[1745365732357,0.1619,93612.0,93610.0,0.1067811]
[1745365732656,0.1619,93612.0,93610.0,0.11469653]
[1745365732854,0.1619,93612.0,93611.0,0.1641]
[1745365733265,0.3608,93613.0,93612.0,0.106779]
[1745365733463,0.1619,93623.0,93612.0,0.3407]
[1745365733669,0.3608,93616.0,93615.0,0.1067756]
[1745365733867,0.337,93623.0,93614.0,0.0533883]
[1745365734068,0.1619,93623.0,93617.0,0.0533863]
[1745365734366,0.24526,93623.0,93619.0,0.1067707]
[1745365734565,0.24526,93623.0,93622.0,0.1067676]
[1745365735865,0.24826,93623.0,93622.0,0.1067676]
[1745365736566,0.24626,93623.0,93622.0,0.1067676]
[1745365736864,0.24626,93623.0,93620.0,0.3372]
[1745365737060,0.1067687,93621.0,93620.0,0.1641]
[1745365737260,0.2663676,93622.0,93612.0,0.1676]
[1745365737456,0.3608,93614.0,93613.0,0.1692]
[1745365737661,0.3608,93614.0,93604.0,0.1067875]
[1745365737961,0.08736,93623.0,93616.0,0.1067743]
[1745365738161,0.3347,93622.0,93617.0,0.3249]
[1745365738363,0.08636,93623.0,93622.0,0.1067676]
[1745365739155,0.08436,93623.0,93622.0,0.1067676]
[1745365739867,0.08336,93623.0,93622.0,0.1067676]
[1745365740268,0.08336,93623.0,93619.0,0.3608]
[1745365740462,0.08336,93623.0,93621.0,0.169]
[1745365740463,0.3365,93622.0,93621.0,0.169]
[1745365740859,0.3365,93622.0,93621.0,0.2757687]
[1745365741366,0.3365,93622.0,93621.0,0.169]
[1745365741569,0.3365,93622.0,93621.0,0.17]
[1745365742262,0.3365,93622.0,93621.0,0.171]
[1745365742464,0.3365,93622.0,93621.0,0.165]
[1745365742661,0.3395,93622.0,93621.0,0.2717687]
[1745365743576,0.3395,93622.0,93621.0,0.165]
[1745365744171,0.3385,93622.0,93621.0,0.002]
[1745365744371,0.3385,93622.0,93613.0,0.1067775]
[1745365744568,0.3608,93618.0,93617.0,0.1067733]
[1745365744773,0.3385,93622.0,93617.0,0.1067733]
[1745365744970,0.3395,93622.0,93621.0,0.1067687]
[1745365745169,0.003,93622.0,93621.0,0.1067687]
[1745365745572,0.08336,93623.0,93622.0,0.1057676]
[1745365745763,0.08336,93623.0,93622.0,0.1037676]
[1745365746267,0.03644872,93626.0,93622.0,0.35681199]
[1745365746472,24.15746361,93740.0,93634.0,0.1067539]
[1745365746473,0.3608,93654.0,93634.0,0.1067539]
[1745365746666,1e-08,93640.0,93639.0,0.1067482]
[1745365746876,1e-08,93640.0,93639.0,0.5675482]
[1745365747073,1e-08,93640.0,93639.0,0.6743402]
[1745365747375,1e-08,93640.0,93639.0,0.8033482]
[1745365748671,1e-08,93640.0,93639.0,0.8043482]
[1745365749269,1e-08,93640.0,93639.0,0.6976]
[1745365749471,1e-08,93640.0,93639.0,0.2687482]
[1745365749876,1e-08,93640.0,93639.0,0.4445482]
[1745365750271,1e-08,93640.0,93639.0,0.2687482]
[1745365750466,1e-08,93640.0,93639.0,0.2677482]
[1745365750670,1e-08,93640.0,93639.0,0.2687482]
[1745365751072,1e-08,93640.0,93639.0,0.2677482]
[1745365751268,1e-08,93640.0,93639.0,0.2687482]
[1745365751572,1e-08,93640.0,93639.0,0.4293482]
[1745365751877,1e-08,93640.0,93639.0,0.2687482]
[1745365752076,1e-08,93640.0,93639.0,0.002]
[1745365752276,0.1067502,93638.0,93623.0,0.1636]
[1745365752465,0.3608,93632.0,93610.0,0.00806264]
[1745365752669,0.3608,93621.0,93606.0,0.1067854]
[1745365752881,0.3418,93620.0,93606.0,0.11472141]
[1745365753180,0.3608,93612.0,93606.0,0.00793591]
[1745365753376,0.3312,93611.0,93603.0,0.1067883]
[1745365753678,0.3312,93611.0,93607.0,0.1067846]
[1745365753873,0.3312,93611.0,93602.0,0.1665]
[1745365754176,0.3312,93611.0,93610.0,0.1067813]
[1745365755371,0.34724001,93611.0,93602.0,0.00803923]
[1745365755573,0.34724001,93611.0,93607.0,0.1067843]
[1745365755877,0.34724001,93611.0,93609.0,0.1067819]
[1745365756173,0.34724001,93611.0,93610.0,0.001]
[1745365756373,0.34724001,93611.0,93610.0,0.1087813]
[1745365757074,0.34724001,93611.0,93610.0,0.1077813]
[1745365757482,0.34724001,93611.0,93610.0,0.1067813]
[1745365758370,0.3312,93611.0,93610.0,0.1067813]
[1745365759283,0.3312,93611.0,93610.0,0.1077813]
[1745365760389,0.00016027,93618.0,93611.0,0.05339]
[1745365760678,0.00016027,93618.0,93617.0,0.1067733]
[1745365761477,0.00016027,93618.0,93617.0,0.4486733]
[1745365762575,0.00016027,93618.0,93617.0,0.2761733]
[1745365763479,0.00016027,93618.0,93617.0,0.2791733]
[1745365763680,0.00016027,93618.0,93617.0,0.2821733]
[1745365765182,0.00016027,93618.0,93617.0,0.2811733]
[1745365765774,0.00016027,93618.0,93617.0,0.2781733]
[1745365765977,0.00016027,93618.0,93617.0,0.2811733]
[1745365767375,0.00016027,93618.0,93617.0,0.2801733]
[1745365767777,0.00016027,93618.0,93617.0,0.2781733]
[1745365767976,0.00016027,93618.0,93617.0,0.2811733]
[1745365768775,0.00016027,93618.0,93617.0,0.2791733]
[1745365768973,0.00016027,93618.0,93617.0,0.006]
[1745365769689,0.00016027,93618.0,93617.0,0.007]
[1745365769988,0.00016027,93618.0,93617.0,0.1137733]
[1745365770482,0.00016027,93618.0,93617.0,0.008]
[1745365771287,0.00016027,93618.0,93617.0,0.1147733]
[1745365771486,0.00016027,93618.0,93617.0,0.008]
[1745365771786,0.00016027,93618.0,93617.0,0.1147733]
[1745365774487,0.00016027,93618.0,93617.0,0.2824733]
[1745365774793,0.01620028,93618.0,93617.0,0.2824733]
[1745365774986,0.00016027,93618.0,93617.0,0.2824733]
[1745365776088,0.00016027,93618.0,93617.0,0.4424733]
[1745365776589,0.00016027,93618.0,93617.0,0.2824733]
[1745365777187,0.16786027,93618.0,93617.0,0.2824733]
[1745365784390,0.16786027,93618.0,93617.0,0.1757]
[1745365784587,0.16786027,93618.0,93617.0,0.2824733]
[1745365784984,0.16786027,93618.0,93617.0,0.1757]
[1745365787489,0.00016027,93618.0,93617.0,0.2824733]
[1745365787685,0.3608,93630.0,93617.0,0.532516]
[1745365787887,0.0832,93648.0,93639.0,0.1067482]
[1745365788291,0.1701,93647.0,93639.0,0.1067482]
[1745365788698,0.1701,93647.0,93639.0,0.4554482]
[1745365789590,0.00300001,93640.0,93639.0,0.4554482]
[1745365790188,0.00200001,93640.0,93639.0,0.4554482]
[1745365790493,0.00300001,93640.0,93639.0,0.4554482]
[1745365791097,0.00300001,93640.0,93639.0,0.2805482]
[1745365791395,0.00300001,93640.0,93639.0,0.2735482]
[1745365791797,0.00300001,93640.0,93639.0,0.4347482]
[1745365793296,1e-08,93640.0,93639.0,0.4357482]
[1745365793487,1e-08,93640.0,93639.0,0.4387482]
[1745365794090,1e-08,93640.0,93639.0,0.4357482]
[1745365794292,1e-08,93640.0,93639.0,0.4387482]
[1745365797101,0.08304,93672.0,93662.0,0.106722]
[1745365797293,0.16790316,93663.0,93662.0,0.106722]
[1745365797900,0.16790316,93663.0,93662.0,0.440122]
[1745365797901,0.20401942,93663.0,93662.0,0.440122]
[1745365798091,0.03771942,93663.0,93662.0,0.440122]
[1745365798302,0.00160316,93663.0,93662.0,0.440122]
[1745365798499,0.3256,93671.0,93670.0,0.1067129]
[1745365798710,0.3620345,93671.0,93670.0,0.1067129]
[1745365799094,0.3620345,93671.0,93670.0,0.1017129]
[1745365799293,0.3620345,93671.0,93670.0,0.43118166]
[1745365799698,0.3620345,93671.0,93670.0,0.26838166]
[1745365799900,0.3620345,93671.0,93670.0,0.26438166]
[1745365800210,0.3630345,93671.0,93670.0,0.26438166]
[1745365801310,0.1067164,93667.0,93656.0,0.1067284]
[1745365801507,0.3608,93662.0,93642.0,0.1681]
[1745365801804,0.3608,93654.0,93650.0,0.0533676]
[1745365801999,0.3313,93653.0,93652.0,0.1067326]
[1745365803009,0.0364345,93671.0,93657.0,0.002]
[1745365803204,0.3334,93686.0,93670.0,0.3608]
[1745365803404,0.3334,93686.0,93679.0,0.3608]
[1745365803712,0.3698567,93686.0,93685.0,0.1066958]
[1745365804408,0.0364567,93686.0,93685.0,0.1066958]
[1745365804608,0.0052,93688.0,93685.0,0.1066958]
[1745365804609,0.0052,93688.0,93687.0,0.1056935]
[1745365804905,0.0052,93688.0,93687.0,0.4664935]
[1745365805298,0.0052,93688.0,93687.0,0.6331935]
[1745365805696,0.0052,93688.0,93687.0,0.6311935]
[1745365806104,0.0052,93688.0,93687.0,0.6291935]
[1745365806303,0.0062,93688.0,93687.0,0.6291935]
[1745365806705,0.03790596,93697.0,93687.0,0.6291935]
[1745365806706,0.00160233,93723.0,93687.0,0.884236]
[1745365806910,0.00160233,93723.0,93709.0,0.1056685]
[1745365806911,0.1698,93710.0,93709.0,0.1056685]
[1745365807101,0.1698,93710.0,93707.0,0.0533351]
[1745365807102,0.1698,93710.0,93708.0,0.1639]
[1745365807302,0.5315,93709.0,93698.0,0.0533404]
[1745365807608,0.5315,93709.0,93695.0,0.3608]
[1745365807609,0.5315,93709.0,93701.0,0.0533382]
[1745365807909,0.1698,93708.0,93699.0,0.1639]
[1745365808205,0.1698,93708.0,93703.0,0.0533374]
[1745365808409,0.1707,93707.0,93706.0,0.1066719]
[1745365808800,0.1707,93707.0,93698.0,0.0079782]
[1745365809006,0.1698,93706.0,93699.0,0.1066796]
[1745365809200,0.3383,93706.0,93700.0,0.1066785]
[1745365809403,0.1642,93705.0,93700.0,0.1066785]
[1745365809709,0.08304,93704.0,93700.0,0.1066785]
[1745365809900,0.25284,93704.0,93700.0,0.1066785]
[1745365810101,0.1642,93703.0,93698.0,0.00787572]
[1745365810304,0.1698,93702.0,93695.0,0.3608]
[1745365810704,0.1698,93702.0,93670.0,0.12777696]
[1745365810705,0.0533405,93698.0,93674.0,0.3608]
[1745365811011,0.12777696,93690.0,93674.0,0.3608]
[1745365811211,0.3357,93689.0,93675.0,0.0533535]
[1745365811507,0.08304,93688.0,93675.0,0.0533535]
[1745365811807,0.08304,93688.0,93678.0,0.1067036]
[1745365812002,0.3372,93687.0,93678.0,0.1067036]
[1745365812198,0.5292,93687.0,93678.0,0.1067036]
[1745365813107,0.3372,93687.0,93679.0,0.1067022]
[1745365814202,0.5292,93687.0,93679.0,0.003]
[1745365815113,0.01604001,93686.0,93680.0,0.1067013]
[1745365815308,0.01604001,93686.0,93679.0,0.005]
[1745365815506,0.3416,93685.0,93679.0,0.005]
[1745365815810,0.3416,93685.0,93679.0,0.1117021]
[1745365816208,0.3416,93685.0,93680.0,0.002]
[1745365817208,0.3416,93685.0,93679.0,0.004]
[1745365817209,0.1557,93684.0,93679.0,0.004]
[1745365817414,0.1557,93684.0,93679.0,0.006]
[1745365817602,0.3517,93683.0,93679.0,0.006]
[1745365818209,0.3517,93683.0,93679.0,0.1127024]
[1745365818717,0.3517,93683.0,93680.0,0.003]
[1745365819013,0.3517,93683.0,93680.0,0.005]
[1745365819214,0.3608,93681.0,93659.0,0.32995246]
[1745365819515,0.1067149,93669.0,93655.0,0.2672292]
[1745365819709,0.3608,93660.0,93622.0,0.1363033]